bitfinex/quotes_SOLUSD_20241121
["timestamp","ask_amount","ask_price","bid_price","bid_amount"]
[1732219425056,3.10285,255.01,255.0,12.0798022]
[1732219425558,1.10285,255.01,255.0,12.0798022]
[1732219425870,3.10285,255.01,255.0,12.0798022]
[1732219426192,3.10285,255.01,255.0,12.8641022]
[1732219426669,1.10285,255.01,255.0,0.7843]
[1732219426848,3.10285,255.01,255.0,0.7843]
[1732219427571,1.10285,255.01,255.0,12.0798022]
[1732219428973,2.5,255.15,255.0,12.0798022]
[1732219428974,1.10285,255.09,255.01,20.0]
[1732219429160,1.10285,255.09,255.08,12.0798022]
[1732219429673,1.10285,255.09,255.07,12.8638022]
[1732219429967,1.10285,255.11,255.08,12.0798022]
[1732219430175,6.6343,255.18,255.11,20.0]
[1732219430176,1.10285,255.13,255.11,20.0]
[1732219430351,1.10285,255.13,255.12,12.0798022]
[1732219430553,3.10285,255.18,255.13,20.0]
[1732219430875,2.0,255.18,255.15,12.0798022]
[1732219431249,1.10285,255.17,255.15,12.0798022]
[1732219431454,1.10285,255.13,255.11,12.0798022]
[1732219431672,1.10285,255.13,255.1,12.0798022]
[1732219431847,1.10285,255.11,255.08,14.8239022]
[1732219432054,1.10285,255.11,255.1,20.0]
[1732219432260,1.10285,255.11,255.1,12.0798022]
[1732219432468,1.10285,255.11,255.09,12.0798022]
[1732219432670,1.10285,255.11,255.1,12.0798022]
[1732219433055,1.10285,255.11,255.08,14.0399022]
[1732219433266,1.10285,255.09,255.08,2.7441]
[1732219433569,1.10285,255.09,255.06,2.0798022]
[1732219433972,3.10285,255.09,255.06,2.0798022]
[1732219434471,2.0,255.06,255.05,12.0798022]
[1732219434657,2.0,255.06,255.04,12.0798022]
[1732219434848,3.10285,255.07,255.04,12.0798022]
[1732219435055,2.0,255.06,255.04,12.8639022]
[1732219435472,2.0,255.05,255.04,12.8639022]
[1732219436367,1.10285,255.05,255.03,1.9605]
[1732219436676,2.0,255.04,255.03,1.9605]
[1732219437266,2.0,255.02,255.0,12.0798022]
[1732219437575,2.0,254.99,254.98,1.9608]
[1732219437951,3.10285,254.99,254.98,1.9608]
[1732219438152,3.10285,254.99,254.97,12.0798022]
[1732219438361,2.0,254.97,254.94,12.0798022]
[1732219438679,3.10285,254.95,254.91,12.8643022]
[1732219438971,2.0,254.93,254.91,12.8643022]
[1732219439378,6.6493,255.08,254.88,1.9616]
[1732219439379,1.10285,254.9,254.88,14.0414022]
[1732219439672,1.10285,254.9,254.88,1.9616]
[1732219439972,2.0,254.89,254.88,1.9616]
[1732219440170,2.0,254.91,254.88,1.9616]
[1732219440367,2.0,254.93,254.88,2.7462]
[1732219440876,3.10285,254.97,254.88,2.7462]
[1732219441169,3.10285,254.97,254.95,12.0798022]
[1732219441477,3.10285,254.97,254.94,12.8642022]
[1732219441651,3.10285,254.95,254.93,12.0798022]
[1732219441856,3.10285,254.93,254.91,12.0798022]
[1732219442056,3.10285,254.93,254.92,12.0798022]
[1732219442877,2.0,254.95,254.92,12.0798022]
[1732219443169,2.0,254.95,254.94,36.6410862]
[1732219443680,3.10285,254.95,254.94,12.0798022]
[1732219443877,2.0,254.95,254.94,12.0798022]
[1732219444177,2.0,254.97,254.94,35.8566862]
[1732219444376,1.10285,254.96,254.95,23.776884]
[1732219444564,2.0,254.97,254.95,12.0798022]
[1732219444771,2.0,254.97,254.96,12.0798022]
[1732219444950,2.0,254.97,254.95,12.0798022]
[1732219445856,1.10285,254.98,254.95,12.0798022]
[1732219446562,1.10285,254.96,254.94,12.0798022]
[1732219446758,2.3921,254.99,254.86,0.7847]
[1732219446759,1.10285,254.9,254.86,0.7847]
[1732219446951,0.9803,255.02,254.84,7.94611203]
[1732219446952,2.0,254.88,254.84,14.0417022]
[1732219447151,1.10285,254.89,254.85,12.0798022]
[1732219447355,2.0,254.9,254.86,12.0798022]
[1732219447779,1.10285,254.89,254.86,12.0798022]
[1732219447979,2.0,254.9,254.86,12.0798022]
[1732219448158,1.10285,254.9,254.88,12.0798022]
[1732219448662,3.10285,254.9,254.88,12.0798022]
[1732219449062,1.10285,254.9,254.88,12.0798022]
[1732219449276,1.10285,254.9,254.88,12.8644022]
[1732219449454,3.10285,254.9,254.88,12.8644022]
[1732219449661,1.10285,254.9,254.88,20.0]
[1732219449974,1.10285,254.84,254.82,12.0798022]
[1732219450159,1.10285,254.8,254.79,1.9623]
[1732219450485,1.10285,254.8,254.77,11.17570299]
[1732219450486,1.10285,254.78,254.77,11.17570299]
[1732219450969,3.10285,254.78,254.77,11.17570299]
[1732219451376,2.0,254.78,254.77,11.17570299]
[1732219451564,3.10285,254.8,254.77,11.17570299]
[1732219451879,3.10285,254.78,254.77,11.96070299]
[1732219452185,1.10285,254.78,254.77,11.96070299]
[1732219452867,1.10285,254.78,254.77,24.04050519]
[1732219453371,1.10285,254.78,254.77,11.17570299]
[1732219454675,1.10285,254.78,254.77,11.96060299]
[1732219455188,2.0,254.79,254.77,11.96060299]
[1732219455485,2.0,254.79,254.77,24.04040519]
[1732219455663,1.10285,254.78,254.77,26.00290519]
[1732219457261,3.10285,254.78,254.77,26.00290519]
[1732219457470,2.0,254.78,254.77,26.00290519]
[1732219458180,1.10285,254.81,254.77,26.00290519]
[1732219458181,3.10285,254.81,254.77,26.00290519]
[1732219458360,10.0,254.86,254.77,26.00290519]
[1732219458361,3.10285,254.78,254.77,13.13820299]
[1732219459064,1.10285,254.78,254.77,13.92320299]
[1732219459259,3.10285,254.78,254.77,13.92320299]
[1732219460072,1.10285,254.78,254.77,13.92320299]
[1732219460288,3.10285,254.78,254.77,13.92320299]
[1732219461193,3.10285,254.78,254.77,13.13820299]
[1732219461375,3.10285,254.78,254.77,13.92320299]
[1732219461688,3.10285,254.78,254.77,13.13820299]
[1732219461867,1.10285,254.78,254.77,13.13820299]
[1732219462195,1.10285,254.82,254.77,26.00300519]
[1732219462372,10.0,254.86,254.77,26.00300519]
[1732219462373,10.0,254.86,254.82,20.0]
[1732219462684,10.0,254.86,254.77,2.7475]
[1732219462685,10.0,254.86,254.85,32.0798022]
[1732219464289,10.0,254.86,254.85,32.8645022]
[1732219465593,10.0,254.86,254.85,24.9443044]
[1732219470374,10.0,254.86,254.79,20.0]
[1732219470591,10.0,254.86,254.85,12.0798022]
[1732219470789,10.0,254.86,254.85,35.8566862]
[1732219472594,10.0,254.86,254.85,55.8566862]
[1732219472799,10.0,254.86,254.85,56.6413862]
[1732219473275,10.0,254.86,254.85,32.8645022]
[1732219473798,10.0,254.86,254.85,12.8645022]
[1732219474388,10.0,254.86,254.85,36.6413862]
[1732219475801,10.0,254.86,254.85,56.6413862]
[1732219476401,2.0,255.02,254.85,72.3444862]
[1732219476578,2.0,255.02,254.97,12.0798022]
[1732219477084,2.0,255.0,254.97,12.0798022]
[1732219477491,2.0,255.02,254.97,23.776884]
[1732219477878,2.0,255.03,254.98,12.0798022]
[1732219478103,2.0,255.01,254.98,12.0798022]
[1732219478311,2.0,255.01,254.99,2.7451]
[1732219479092,27.2792,255.16,254.99,2.7451]
[1732219479093,2.0,255.04,255.0,55.8566862]
[1732219479298,2.0,255.04,255.02,12.0798022]
[1732219479505,2.0,255.04,255.02,23.776884]
[1732219479999,2.0,255.04,255.01,23.776884]
[1732219480384,2.0,255.04,255.02,0.7842]
[1732219480808,2.0,255.04,255.01,23.776884]
[1732219480976,2.0,255.02,255.01,23.776884]
[1732219481182,2.0,255.13,255.02,20.0]
[1732219481406,2.0,255.09,255.07,20.0]
[1732219481605,2.0,255.09,255.08,23.776884]
[1732219481814,2.0,255.07,255.03,23.776884]
[1732219481982,2.0,255.04,255.03,43.776884]
[1732219482188,2.0,255.04,255.03,55.8566862]
[1732219482507,2.0,255.05,255.03,58.6013862]
[1732219482688,2.0,255.05,255.04,35.8566862]
[1732219483396,2.0,255.05,255.04,27.9364884]
[1732219483586,2.0,255.05,255.04,12.0798022]
[1732219483907,2.0,255.02,255.01,20.0]
[1732219484288,2.0,255.02,255.01,32.0798022]
[1732219484489,2.0,255.02,255.01,12.0798022]
[1732219485712,2.0,255.02,255.01,12.8640022]
[1732219485884,2.0,255.07,255.01,12.8640022]
[1732219486087,2.0,255.02,255.01,0.7842]
[1732219486289,2.0,255.04,255.01,0.7842]
[1732219486491,2.0,255.02,255.01,0.7842]
[1732219487789,2.0,255.02,255.0,12.0798022]
[1732219488306,2.0,255.04,255.01,12.0798022]
[1732219488691,2.0,255.02,255.01,12.0798022]
[1732219489007,2.0,255.04,255.01,12.8640022]
[1732219489209,2.0,255.04,255.02,12.0798022]
[1732219489386,2.0,255.07,255.04,20.0]
[1732219489707,2.0,255.07,255.06,20.0]
[1732219489908,2.0,255.07,255.02,12.0798022]
[1732219490091,2.0,255.07,255.02,32.0798022]
[1732219490610,2.0,255.05,255.04,32.0798022]
[1732219490783,2.0,255.05,255.03,12.0798022]
[1732219490986,2.0,255.05,255.03,12.8640022]
[1732219491200,2.0,255.05,255.02,24.9438044]
[1732219491610,2.0,255.03,255.02,24.9438044]
[1732219491906,2.0,255.0,254.99,12.0798022]
[1732219492507,2.0,255.0,254.98,12.0798022]
[1732219493010,2.0,254.98,254.96,1.961]
[1732219493754,2.0,254.93,254.91,2.7459]
[1732219494895,2.0,254.91,254.89,0.7846]
[1732219495419,2.0,254.91,254.86,14.0416022]
[1732219495710,2.0,254.89,254.87,0.7847]
[1732219496020,20.0,255.0,254.86,2.7465]
[1732219496021,2.0,254.87,254.86,2.7465]
[1732219496308,2.0,254.87,254.86,14.8263022]
[1732219497708,2.0,254.89,254.86,14.8263022]
[1732219498014,2.0,254.89,254.88,12.0798022]
[1732219500115,2.0,254.89,254.88,12.8644022]
[1732219500699,2.0,254.89,254.88,12.0798022]
[1732219501495,2.0,254.89,254.87,4.558462]
[1732219502094,2.0,254.89,254.87,17.4229642]
[1732219503225,2.0,254.89,254.88,12.0798022]
[1732219504009,6.5264,255.01,254.88,12.0798022]
[1732219504010,2.0,254.93,254.89,20.0]
[1732219504329,2.0,254.98,254.93,10.0]
[1732219504523,2.0,254.98,254.97,12.0798022]
[1732219504725,6.3843,255.07,254.97,12.0798022]
[1732219504726,2.0,255.0,254.97,12.0798022]
[1732219505423,2.0,254.97,254.96,12.0798022]
[1732219505610,2.0,254.97,254.89,15.6686]
[1732219505611,2.0,254.97,254.95,12.0798022]
[1732219505999,2.0,255.04,254.96,12.0798022]
[1732219506199,2.0,255.03,254.99,20.0]
[1732219506503,2.0,255.01,255.0,12.0798022]
[1732219506806,2.0,255.01,254.99,12.0798022]
[1732219507007,2.0,255.01,255.0,12.0798022]
[1732219507207,2.0,255.03,255.0,12.0798022]
[1732219508213,2.0,255.03,255.01,12.0798022]
[1732219508408,2.0,255.03,255.02,12.0798022]
[1732219508743,6.5201,255.13,255.02,12.0798022]
[1732219508744,2.0,255.05,255.02,12.0798022]
[1732219508900,2.0,255.05,255.03,12.0798022]
[1732219509402,2.0,255.05,255.02,12.0798022]
[1732219510309,0.3919,255.12,255.02,12.0798022]
[1732219510310,2.0,255.03,255.02,12.0798022]
[1732219510525,2.0,255.03,255.02,12.8640022]
[1732219512012,2.0,255.03,255.02,14.8246022]
[1732219512915,2.0,255.05,255.02,14.8246022]
[1732219513233,2.0,255.05,255.03,12.0798022]
[1732219513829,2.0,255.05,255.03,2.0798022]
[1732219514209,2.0,255.05,255.04,12.0798022]
[1732219515116,2.0,255.05,255.04,12.4718022]
[1732219517015,2.0,255.05,255.04,13.4520022]
[1732219518130,2.0,255.09,255.04,13.4520022]
[1732219518310,2.0,255.06,255.05,12.0798022]
[1732219518930,6.912,255.13,255.04,13.0600022]
[1732219518931,2.0,255.09,255.04,13.0600022]
[1732219519117,2.0,255.05,255.04,13.4520022]
[1732219519525,2.0,255.07,255.04,13.4520022]
[1732219519727,2.0,255.07,255.06,12.0798022]
[1732219520115,2.0,255.07,255.05,12.4718022]
[1732219520437,2.0,255.06,255.05,13.4519022]
[1732219520629,2.0,255.06,255.05,1.3721]
[1732219520832,2.0,255.06,255.05,13.4519022]
[1732219523768,2.0,255.1,255.05,13.4519022]
[1732219523939,2.0,255.13,255.09,12.0798022]
[1732219524119,2.0,255.13,255.12,12.0798022]
[1732219526016,2.0,255.13,255.12,2.4717022]
[1732219526935,2.0,255.15,255.12,3.4516022]
[1732219527115,2.0,255.15,255.14,12.0798022]
[1732219527525,2.0,255.17,255.14,35.8566862]
[1732219527720,2.0,255.23,255.16,12.0798022]
[1732219528014,2.5,255.36,255.16,12.0798022]
[1732219528015,2.0,255.26,255.23,1.3713]
[1732219528221,2.0,255.26,255.24,12.0798022]
[1732219528416,2.0,255.24,255.23,0.9795]
[1732219528621,2.0,255.22,255.18,13.0594022]
[1732219528822,0.3917,255.3,255.19,0.3918]
[1732219528823,2.0,255.2,255.19,0.3918]
[1732219531222,2.0,255.2,255.18,0.9796]
[1732219531624,2.0,255.16,255.14,0.3919]
[1732219532334,2.0,255.16,255.15,12.0798022]
[1732219533039,2.0,255.09,255.04,10.63705323]
[1732219533221,2.0,255.06,255.05,12.0798022]
[1732219533726,2.0,255.08,255.05,12.0798022]
[1732219534039,2.0,255.1,255.07,12.0798022]
[1732219534222,2.0,255.14,255.09,12.0798022]
[1732219534434,2.0,255.14,255.06,12.0798022]
[1732219534435,2.0,255.14,255.13,12.0798022]
[1732219534621,2.0,255.16,255.13,12.0798022]
[1732219534816,6.0536,255.22,255.13,12.0798022]
[1732219534817,2.0,255.14,255.13,12.0798022]
[1732219535434,20.0,255.14,255.13,12.4717022]
[1732219535936,20.0,255.14,255.13,36.2485862]
[1732219536316,20.0,255.14,255.13,56.2485862]
[1732219537625,20.0,255.14,255.13,58.39559528]
[1732219539942,20.0,255.14,255.13,56.2485862]
[1732219541239,9.10263544,255.14,255.13,56.2485862]
[1732219541740,8.97723544,255.14,255.13,56.2485862]
[1732219541953,2.0,255.2,255.14,23.776884]
[1732219542249,2.0,255.2,255.19,12.0798022]
[1732219543351,2.0,255.2,255.18,12.0798022]
[1732219543722,2.0,255.2,255.19,12.0798022]
[1732219544050,2.0,255.2,255.19,12.4716022]
[1732219544241,2.0,255.2,255.19,12.0798022]
[1732219550651,2.0,255.22,255.19,12.0798022]
[1732219550858,2.0,255.21,255.16,23.776884]
[1732219551060,2.0,255.21,255.2,12.0798022]
[1732219554730,2.0,255.25,255.2,7.64572946]
[1732219554959,2.0,255.25,255.24,7.64572946]
[1732219556236,2.0,255.27,255.24,7.64572946]
[1732219556444,2.0,255.27,255.26,7.64572946]
[1732219557463,2.0,255.27,255.26,31.42261346]
[1732219558046,2.0,255.31,255.26,31.42261346]
[1732219558255,2.0,255.31,255.3,7.64572946]
[1732219560258,2.0,255.33,255.3,7.64572946]
[1732219560445,2.0,255.33,255.32,7.64572946]
[1732219560840,2.0,255.33,255.25,25.34361346]
[1732219561045,2.0,255.29,255.25,25.34361346]
[1732219561363,2.0,255.32,255.28,7.64572946]
[1732219561557,2.0,255.29,255.25,25.34361346]
[1732219562041,2.0,255.26,255.2,7.18844983]
[1732219562245,2.0,255.26,255.21,3.921]
[1732219562667,2.0,255.26,255.25,7.64572946]
[1732219563140,2.0,255.26,255.25,31.42261346]
[1732219564051,2.0,255.26,255.25,7.64572946]
[1732219564872,0.3916,255.36,255.25,7.64572946]
[1732219564873,2.0,255.3,255.25,7.64572946]
[1732219565044,2.0,255.26,255.21,43.776884]
[1732219565358,2.0,255.3,255.21,47.697884]
[1732219565562,2.0,255.29,255.21,47.697884]
[1732219565761,2.0,255.3,255.21,47.697884]
[1732219565954,2.0,255.3,255.29,7.64572946]
[1732219566361,21.0356,255.41,255.28,7.64572946]
[1732219566362,2.0,255.34,255.28,7.64572946]
[1732219566666,2.0,255.32,255.28,5.73165917]
[1732219566957,2.0,255.3,255.28,5.73165917]
[1732219567164,2.0,255.3,255.26,43.776884]
[1732219567657,2.0,255.3,255.29,7.64572946]
[1732219568041,2.0,255.32,255.29,7.64572946]
[1732219568244,2.0,255.34,255.26,43.776884]
[1732219568462,2.0,255.34,255.33,7.64572946]
[1732219568842,2.0,255.34,255.33,27.64572946]
[1732219569161,2.0,255.35,255.34,43.776884]
[1732219569344,2.0,255.39,255.34,51.42261346]
[1732219569546,16.0356,255.41,255.36,7.64572946]
[1732219569547,2.0,255.37,255.36,7.64572946]
[1732219570548,2.0,255.37,255.35,7.64572946]
[1732219571267,2.0,255.36,255.35,7.64572946]
[1732219571648,2.5,255.36,255.35,7.64572946]
[1732219573163,2.5,255.38,255.35,7.64572946]
[1732219573349,2.5,255.34,255.33,20.0]
[1732219573855,2.5,255.37,255.3,20.0]
[1732219574359,6.244,255.42,255.29,25.96769267]
[1732219574360,2.5,255.33,255.29,25.96769267]
[1732219574564,2.5,255.3,255.29,2.19080867]
[1732219574867,2.5,255.3,255.21,7.77349995]
[1732219574868,2.5,255.29,255.23,3.921]
[1732219575163,2.5,255.31,255.21,7.77349995]
[1732219575365,2.5,255.31,255.21,5.27349995]
[1732219575563,2.5,255.31,255.3,7.64572946]
[1732219577950,2.5,255.29,255.22,43.776884]
[1732219578149,2.5,255.26,255.2,16.4396]
[1732219578467,2.5,255.26,255.25,7.64572946]
[1732219578777,0.833138,255.4,255.3,1.666862]
[1732219579272,6.244,255.42,255.34,7.64572946]
[1732219579572,6.244,255.42,255.35,1.666862]
[1732219579769,6.244,255.42,255.34,7.64572946]
[1732219579944,6.244,255.42,255.37,7.64572946]
[1732219580145,6.6355,255.42,255.38,1.666862]
[1732219580347,6.244,255.42,255.37,7.64572946]
[1732219580948,6.244,255.42,255.38,9.31259146]
[1732219581454,6.244,255.42,255.41,7.64572946]
[1732219581856,6.244,255.42,255.39,7.64572946]
[1732219582172,0.3914,255.45,255.41,7.64572946]
[1732219582379,0.3914,255.48,255.41,7.64572946]
[1732219582666,0.3914,255.48,255.4,7.64572946]
[1732219583080,0.3914,255.48,255.41,9.31259146]
[1732219583571,0.3914,255.48,255.42,7.64572946]
[1732219584163,6.3253,255.49,255.45,1.666862]
[1732219584364,6.3253,255.49,255.47,7.64572946]
[1732219584548,15.3311,255.5,255.47,7.64572946]
[1732219584749,15.3311,255.5,255.48,7.64572946]
[1732219584970,0.3913,255.53,255.48,7.64572946]
[1732219585475,0.3913,255.53,255.45,1.666862]
[1732219585667,0.3913,255.53,255.43,7.64572946]
[1732219585864,0.833138,255.52,255.42,1.666862]
[1732219586183,0.3913,255.51,255.42,9.31259146]
[1732219586659,0.3913,255.51,255.45,7.64572946]
[1732219586869,0.3913,255.51,255.44,7.64572946]
[1732219587381,2.5,255.52,255.43,7.64572946]
[1732219587578,3.333138,255.52,255.43,7.64572946]
[1732219587882,3.333138,255.52,255.42,1.666862]
[1732219587883,0.833138,255.52,255.42,9.31259146]
[1732219588054,3.333138,255.52,255.43,7.64572946]
[1732219588253,0.3913,255.51,255.46,7.64572946]
[1732219588560,0.3913,255.51,255.45,7.64572946]
[1732219588767,0.3913,255.51,255.43,7.64572946]
[1732219589263,2.8913,255.53,255.42,9.31259146]
[1732219589569,2.8913,255.53,255.42,1.666862]
[1732219590654,0.3913,255.53,255.42,1.666862]
[1732219591180,0.3913,255.51,255.42,1.666862]
[1732219592778,0.3913,255.51,255.38,1.666862]
[1732219592981,2.5,255.46,255.3,1.666862]
[1732219593279,0.833138,255.43,255.28,1.666862]
[1732219593875,0.833138,255.41,255.28,1.666862]
[1732219594062,6.3841,255.39,255.26,1.666862]
[1732219594269,15.497,255.38,255.26,1.666862]
[1732219594967,15.497,255.38,255.31,1.666862]
[1732219595161,6.3841,255.39,255.34,1.666862]
[1732219595385,20.497,255.43,255.36,1.666862]
[1732219597273,20.497,255.43,255.34,1.666862]
[1732219597482,20.8885,255.43,255.34,1.666862]
[1732219597656,20.8885,255.43,255.36,1.666862]
[1732219597862,20.8885,255.43,255.33,1.666862]
[1732219598174,20.8885,255.43,255.36,1.666862]
[1732219598579,20.8885,255.43,255.33,1.666862]
[1732219598762,20.8885,255.43,255.28,22.21449549]
[1732219598763,20.8885,255.43,255.31,1.666862]
[1732219599177,23.3885,255.43,255.31,1.666862]
[1732219599960,20.8885,255.43,255.31,1.666862]
[1732219600166,23.3885,255.43,255.31,1.666862]
[1732219600782,20.8885,255.43,255.31,1.666862]
[1732219601284,23.3885,255.43,255.31,1.666862]
[1732219601971,23.3885,255.43,255.26,2.14150935]
[1732219601972,20.8885,255.43,255.33,1.666862]
[1732219602674,21.721638,255.43,255.31,1.666862]
[1732219606302,20.8885,255.43,255.31,1.666862]
[1732219606908,23.776884,255.42,255.31,1.666862]
[1732219607482,21.8672,255.43,255.31,1.666862]
[1732219623386,21.8672,255.43,255.22,3.86203412]
[1732219623586,21.8672,255.43,255.24,5.27349995]
[1732219624097,20.8885,255.43,255.25,23.776884]
[1732219624303,20.8885,255.43,255.26,5.27349995]
[1732219624476,20.8885,255.43,255.27,23.776884]
[1732219624676,20.497,255.43,255.27,29.05038395]
[1732219625697,20.8885,255.43,255.28,20.0]
[1732219626003,5.0,255.43,255.29,23.776884]
[1732219626198,5.0,255.43,255.32,20.0]
[1732219629203,5.0,255.43,255.34,20.0]
[1732219629697,5.0,255.43,255.32,20.0]
[1732219629892,5.0,255.43,255.34,20.0]
[1732219630391,4.0,255.43,255.34,20.0]
[1732219632699,4.3915,255.43,255.32,20.0]
[1732219632979,4.3915,255.43,255.31,0.241097]
[1732219633391,4.0,255.43,255.31,0.241097]
[1732219634178,4.0,255.43,255.31,5.51459695]
[1732219634604,4.0,255.43,255.32,20.0]
[1732219636102,11.0,255.34,255.32,20.0]
[1732219638180,9.24160231,255.34,255.33,43.776884]
[1732219638383,1.25481491,255.34,255.33,43.776884]
[1732219639105,1e-08,255.34,255.33,43.776884]
[1732219642700,1e-08,255.34,255.31,5.27349995]
[1732219642907,1e-08,255.34,255.25,15.9843]
[1732219643586,1e-08,255.34,255.25,21.25779995]
[1732219643818,1e-08,255.34,255.25,23.40801954]
[1732219643989,1e-08,255.34,255.26,20.0]
[1732219644197,1e-08,255.34,255.26,25.27349995]
[1732219644504,1e-08,255.34,255.28,20.0]
[1732219645102,1e-08,255.34,255.27,20.0]
[1732219646486,1e-08,255.34,255.29,20.0]
[1732219648209,1e-08,255.34,255.27,20.0]
[1732219649688,23.23697762,255.39,255.27,20.0]
[1732219654411,23.23697762,255.39,255.28,1.371]
[1732219659513,22.84547762,255.39,255.28,1.371]
[1732219659808,22.84547762,255.39,255.3,20.0]
[1732219660108,6.5307,255.39,255.33,23.776884]
[1732219660311,4.0,255.43,255.34,20.0]
[1732219660512,4.0,255.43,255.35,23.776884]
[1732219661598,4.0,255.43,255.36,1.3706]
[1732219663610,4.0,255.43,255.31,2.68664331]
[1732219663816,4.0,255.43,255.33,20.0]
[1732219664016,4.0,255.43,255.35,20.0]
[1732219664592,4.0,255.43,255.37,20.0]
[1732219665397,4.0,255.43,255.35,20.0]
[1732219665596,4.0,255.43,255.37,20.0]
[1732219665802,4.0,255.43,255.39,23.776884]
[1732219666119,4.0,255.43,255.38,1.3704]
[1732219667691,4.0,255.43,255.32,3.329]
[1732219668103,4.0,255.43,255.33,20.0]
[1732219668298,4.0,255.43,255.32,8.60249995]
[1732219668299,4.0,255.43,255.32,3.329]
[1732219669009,4.0,255.43,255.34,23.3287]
[1732219669192,4.0,255.43,255.35,23.776884]
[1732219669695,4.0,255.43,255.37,23.776884]
[1732219669999,4.0,255.43,255.4,20.0]
[1732219670198,4.0,255.43,255.41,23.776884]
[1732219670589,4.0,255.43,255.42,20.0]
[1732219671294,4.0,255.43,255.42,0.3915]
[1732219673008,4.0,255.43,255.41,0.9788]
[1732219673610,5.2978668,255.51,255.41,0.9788]
[1732219675198,15.487,255.52,255.41,0.9788]
[1732219675420,15.487,255.52,255.42,23.776884]
[1732219675604,15.487,255.52,255.43,20.0]
[1732219676009,15.8783,255.52,255.41,0.9788]
[1732219676727,22.2146,255.52,255.41,0.9788]
[1732219679801,17.2146,255.52,255.35,1.3706]
[1732219680007,18.1929,255.52,255.35,1.3706]
[1732219680423,23.776884,255.51,255.35,1.3706]
[1732219680905,23.776884,255.51,255.35,0.979]
[1732219681111,1.3697,255.5,255.35,0.979]
[1732219681627,23.776884,255.49,255.35,0.979]
[1732219682009,0.3914,255.48,255.35,0.979]
[1732219683934,7.64026198,255.4,255.35,0.979]
[1732219684114,7.64026198,255.42,255.37,20.0]
[1732219685227,7.64026198,255.42,255.38,1.3704]
[1732219685421,7.64026198,255.43,255.38,1.3704]
[1732219685807,7.64026198,255.42,255.38,1.3704]
[1732219687325,7.64026198,255.43,255.38,1.3704]
[1732219687826,7.64026198,255.41,255.38,1.3704]
[1732219688230,7.64026198,255.42,255.38,1.3704]
[1732219688735,0.3913,255.51,255.38,1.3704]
[1732219689030,7.64026198,255.47,255.38,1.3704]
[1732219689721,6.7276,255.52,255.39,23.776884]
[1732219690030,7.64026198,255.49,255.41,23.776884]
[1732219690215,0.3913,255.54,255.42,20.0]
[1732219690532,7.64026198,255.5,255.42,20.0]
[1732219690736,7.64026198,255.49,255.42,20.0]
[1732219691219,7.64026198,255.49,255.43,1.3701]
[1732219691815,7.64026198,255.48,255.43,1.3701]
[1732219692340,7.64026198,255.44,255.41,0.3915]
[1732219692513,7.64026198,255.43,255.41,0.3915]
[1732219693009,7.64026198,255.42,255.39,1.3703]
[1732219693226,7.64026198,255.43,255.39,1.3703]
[1732219693617,1.3695,255.55,255.39,1.3703]
[1732219693813,1.3695,255.55,255.38,1.9578]
[1732219693814,7.64026198,255.48,255.38,1.9578]
[1732219694428,7.64026198,255.47,255.39,23.776884]
[1732219694636,7.64026198,255.48,255.39,23.776884]
[1732219695020,0.3912,255.56,255.4,21.3703]
[1732219695212,7.64026198,255.49,255.41,23.776884]
[1732219695532,7.64026198,255.48,255.41,23.776884]
[1732219696234,7.64026198,255.49,255.42,1.3702]